fUST/lending_fUST_20250226
["ID","MTS","AMOUNT","RATE_DAILY","PERIOD"]
[354581699,1740580334624,-1847.08,0.00056986,120]
[354581700,1740580334669,-2995.29,0.00056986,120]
[354581701,1740580334713,-878.54,0.00056986,120]
[354581702,1740580334755,-500.0,0.00056986,120]
[354581703,1740580334799,-6152.07,0.00056986,120]
[354581704,1740580334841,-634.32,0.00056986,120]
[354581705,1740580334883,-760.57,0.00056986,120]
[354581706,1740580334927,-2779.31,0.00056986,120]
[354581707,1740580334970,-861.07,0.00056986,120]
[354581708,1740580335012,-1058.22,0.00056986,120]
[354581709,1740580335055,-1650.62,0.00056986,120]
[354581710,1740580335098,-1067.15,0.00056986,120]
[354581711,1740580335141,-500.0,0.00056986,120]
[354581712,1740580335185,-2131.56,0.00056986,120]
[354581713,1740580335233,-1097.51,0.00056986,120]
[354581714,1740580335278,-500.0,0.00056986,120]
[354581715,1740580335321,-520.67,0.00056986,120]
[354581716,1740580335364,-1169.47,0.00056986,120]
[354581717,1740580335408,-962.58,0.00056986,120]
[354581718,1740580335450,-1172.67,0.00056986,120]
[354581719,1740580335495,-885.16,0.00056986,120]
[354581720,1740580335538,-4042.67,0.00056986,120]
[354581721,1740580335581,-16452.14,0.00056986,120]
[354581722,1740580335624,-500.0,0.00056986,120]
[354581723,1740580335669,-1629.11,0.00056986,120]
[354581724,1740580335713,-1577.6,0.00056986,120]
[354581725,1740580335754,-1349.01,0.00056986,120]
[354581726,1740580335795,-1000.0,0.00056986,120]
[354581727,1740580335838,-500.0,0.00056986,120]
[354581728,1740580335911,-500.0,0.00056986,120]
[354581729,1740580335953,-1725.58,0.00056986,120]
[354581730,1740580335995,-2320.19,0.00056986,120]
[354581731,1740580336036,-500.0,0.00056986,120]
[354581732,1740580336078,-1380.1,0.00056986,120]
[354581733,1740580336121,-10920.74,0.00056986,120]
[354581734,1740580336163,-1875.14136704,0.00057,120]
[354581735,1740580336206,-150.0,0.00057447,120]
[354581736,1740580336248,-689.91,0.00057534,120]
[354581737,1740580336292,-500.0,0.00057534,120]
[354581738,1740580336334,-841.46,0.00057534,120]
[354581739,1740580336376,-4089.66,0.00057534,120]
[354581740,1740580336418,-500.0,0.00057534,120]
[354581741,1740580336463,-2546.7,0.00057534,120]
[354581742,1740580336507,-1286.43,0.00057534,120]
[354581743,1740580336550,-786.34,0.00057534,30]
[354581744,1740580336598,-838.0,0.00057534,120]
[354581745,1740580336643,-3147.16,0.00057534,120]
[354581746,1740580336687,-500.0,0.00057534,120]
[354581747,1740580336734,-1547.26,0.00057534,120]
[354581748,1740580336778,-500.0,0.00057534,120]
[354581749,1740580336822,-2660.56,0.00057534,120]
[354581750,1740580336864,-500.0,0.00057534,120]
[354581751,1740580336907,-500.0,0.00057534,120]
[354581752,1740580336949,-587.06,0.00057534,120]
[354581753,1740580336993,-674.16,0.00057534,120]
[354581754,1740580337037,-1022.06,0.00057534,120]
[354581755,1740580337079,-1683.74,0.00057534,120]
[354581756,1740580337124,-500.0,0.00057534,120]
[354581757,1740580337168,-500.0,0.00057534,120]
[354581758,1740580337213,-561.89,0.00057534,120]
[354581759,1740580337255,-3412.47,0.00057534,120]
[354581760,1740580337296,-584.03,0.00057534,120]
[354581761,1740580337338,-613.39,0.00057534,120]
[354581762,1740580337380,-500.0,0.00057534,120]
[354581763,1740580337422,-755.26,0.00057534,120]
[354581764,1740580337465,-500.0,0.00057534,120]
[354581765,1740580337508,-500.0,0.00057534,120]
[354581766,1740580337552,-2130.93,0.00057534,120]
[354581767,1740580337597,-756.88,0.00057534,120]
[354581768,1740580337643,-500.0,0.00057534,120]
[354581769,1740580337689,-1758.0,0.00057534,120]
[354581770,1740580337731,-354.7588931,0.00057534,120]
[354581771,1740580337773,-573.97,0.00057534,120]
[354581772,1740580337814,-500.0,0.00057534,120]
[354581773,1740580337856,-1293.56,0.00057534,120]
[354581774,1740580337899,-538.92,0.00057534,120]
[354581775,1740580337943,-1059.64,0.00057534,120]
[354581776,1740580337987,-500.0,0.00057534,120]
[354581777,1740580338030,-3370.3,0.00057534,120]
[354581778,1740580338072,-500.0,0.00057534,120]
[354581779,1740580338116,-22791.47,0.00057534,120]
[354581780,1740580338157,-4534.2,0.00057534,120]
[354581781,1740580338198,-812.31,0.00057534,120]
[354581782,1740580338242,-500.0,0.00057534,120]
[354581783,1740580338283,-798.11,0.00057534,120]
[354581784,1740580338324,-2515.99,0.00057534,120]
[354581785,1740580338368,-595.96,0.00057534,60]
[354581786,1740580338411,-232.8699984,0.00057534,30]
[354581787,1740580338457,-500.0,0.00057534,120]
[354581788,1740580338500,-869.48,0.00057534,120]
[354581789,1740580338543,-1566.41,0.00057534,120]
[354581790,1740580338586,-500.0,0.00057534,120]
[354581791,1740580338629,-759.42,0.00057534,120]
[354581792,1740580338675,-1097.91,0.00057534,120]
[354581793,1740580338720,-500.0,0.00057534,120]
[354581794,1740580338763,-656.97,0.00057534,120]
[354581795,1740580338812,-500.0,0.00057534,120]
[354581796,1740580338859,-500.0,0.00057534,120]
[354581797,1740580338903,-1073.63,0.00057534,120]
[354581798,1740580338949,-9030.67,0.00057534,120]
[354581799,1740580338995,-500.0,0.00057534,120]
[354581800,1740580339044,-1754.86,0.00057534,120]
[354581801,1740580339090,-822.59,0.00057534,120]
[354581802,1740580339135,-715.41,0.00057534,120]
[354581803,1740580339180,-697.85,0.00057534,120]
[354581804,1740580339224,-500.0,0.00057534,120]
[354581805,1740580339266,-500.0,0.00057534,120]
[354581806,1740580339309,-500.0,0.00057534,120]
[354581807,1740580339352,-2328.66,0.00057534,120]
[354581808,1740580339394,-821.85,0.00057534,120]
[354581809,1740580339436,-502.91,0.00057534,120]
[354581810,1740580339477,-691.85,0.00057534,120]
[354581811,1740580339520,-752.5,0.00057534,120]
[354581812,1740580339562,-1767.84,0.00057534,120]
[354581813,1740580339609,-1669.91,0.00057534,120]
[354581814,1740580339652,-500.0,0.00057534,120]
[354581815,1740580339696,-880.56,0.00057534,120]
[354581816,1740580339742,-2599.13,0.00057534,120]
[354581817,1740580339786,-2021.07,0.00057534,120]
[354581818,1740580339829,-535.05,0.00057534,120]
[354581819,1740580339871,-501.85,0.00057534,120]
[354581820,1740580339912,-500.0,0.00057534,120]
[354581821,1740580339953,-500.0,0.00057534,120]
[354581822,1740580339999,-545.98,0.00057534,120]
[354581823,1740580340042,-500.0,0.00057534,120]
[354581824,1740580340168,-500.0,0.00057534,120]
[354581825,1740580340213,-500.0,0.00057534,120]
[354581826,1740580340254,-1770.65,0.00057534,120]
[354581827,1740580340293,-4395.48,0.00057534,120]
[354581828,1740580340333,-540.0,0.00057534,120]
[354581829,1740580340375,-658.69,0.00057534,120]
[354581830,1740580340414,-500.0,0.00057534,120]
[354581831,1740580340455,-14800.53,0.00057534,120]
[354581832,1740580340498,-1036.3,0.00057534,120]
[354581833,1740580340541,-863.39,0.00057534,120]
[354581834,1740580340585,-1288.22,0.00057534,120]
[354581835,1740580340625,-500.0,0.00057534,120]
[354581836,1740580340667,-4905.74,0.00057534,120]
[354581837,1740580340711,-1557.42,0.00057534,120]
[354581838,1740580340752,-171.58992146,0.00057534,120]
[354581839,1740580340796,-3013.44,0.00057534,120]
[354581840,1740580340839,-2093.64,0.00057534,120]
[354581841,1740580340882,-553.74,0.00057534,120]
[354581842,1740580340923,-451.59283979,0.00057534,120]
[354581843,1740580340970,-150.3,0.00057534,120]
[354581844,1740580341013,-500.0,0.00057534,120]
[354581845,1740580341054,-1847.08,0.00057534,120]
[354581846,1740580341095,-2995.29,0.00057534,120]
[354581847,1740580341138,-878.54,0.00057534,120]
[354581848,1740580341180,-6152.07,0.00057534,120]
[354581849,1740580341221,-634.32,0.00057534,120]
[354581850,1740580341263,-760.57,0.00057534,120]
[354581851,1740580341304,-2779.31,0.00057534,120]
[354581852,1740580341346,-861.07,0.00057534,120]
[354581853,1740580341387,-1058.22,0.00057534,120]
[354581854,1740580341428,-1650.62,0.00057534,120]
[354581855,1740580341470,-1067.15,0.00057534,120]
[354581856,1740580341510,-500.0,0.00057534,120]
[354581857,1740580341553,-2131.56,0.00057534,120]
[354581858,1740580341598,-1097.51,0.00057534,120]
[354581859,1740580341641,-500.0,0.00057534,120]
[354581860,1740580341689,-520.67,0.00057534,120]
[354581861,1740580341731,-1169.47,0.00057534,120]
[354581862,1740580341774,-962.58,0.00057534,120]
[354581863,1740580341816,-1172.67,0.00057534,120]
[354581864,1740580341858,-885.16,0.00057534,120]
[354581865,1740580341900,-16452.14,0.00057534,120]
[354581866,1740580341940,-4042.67,0.00057534,120]
[354581867,1740580341981,-500.0,0.00057534,120]
[354581868,1740580342020,-1629.11,0.00057534,120]
[354581869,1740580342061,-1577.6,0.00057534,120]
[354581870,1740580342102,-1349.01,0.00057534,120]
[354581871,1740580342144,-1000.0,0.00057534,120]
[354581872,1740580342188,-500.0,0.00057534,120]
[354581873,1740580342231,-500.0,0.00057534,120]
[354581874,1740580342273,-1725.58,0.00057534,120]
[354581875,1740580342316,-2320.19,0.00057534,120]
[354581876,1740580342358,-500.0,0.00057534,120]
[354581877,1740580342399,-1380.1,0.00057534,120]
[354581878,1740580342440,-10920.74,0.00057534,120]
[354581879,1740580342486,-540.0,0.00057808,120]
[354581880,1740580342527,-540.0,0.00058082,120]
[354581881,1740580342568,-689.91,0.00058082,120]
[354581882,1740580342612,-500.0,0.00058082,120]
[354581883,1740580342658,-841.46,0.00058082,120]
[354581884,1740580342702,-4089.66,0.00058082,120]
[354581885,1740580342748,-500.0,0.00058082,120]
[354581886,1740580342791,-2546.7,0.00058082,120]
[354581887,1740580342834,-1286.43,0.00058082,120]
[354581888,1740580342876,-786.34,0.00058082,30]
[354581889,1740580342918,-838.0,0.00058082,120]
[354581890,1740580342964,-3147.16,0.00058082,120]
[354581891,1740580343005,-1547.26,0.00058082,120]
[354581892,1740580343051,-500.0,0.00058082,120]
[354581893,1740580343094,-500.0,0.00058082,120]
[354581894,1740580343139,-2660.56,0.00058082,120]
[354581895,1740580343183,-500.0,0.00058082,120]
[354581896,1740580343225,-500.0,0.00058082,120]
[354581897,1740580343267,-587.06,0.00058082,120]
[354581898,1740580343307,-674.16,0.00058082,120]
[354581899,1740580343349,-1022.06,0.00058082,120]
[354581900,1740580343394,-1683.74,0.00058082,120]
[354581901,1740580343441,-500.0,0.00058082,120]
[354581902,1740580343488,-500.0,0.00058082,120]
[354581903,1740580343531,-561.89,0.00058082,120]
[354581904,1740580343581,-3412.47,0.00058082,120]
[354581905,1740580343628,-584.03,0.00058082,120]
[354581906,1740580343676,-613.39,0.00058082,120]
[354581907,1740580343722,-500.0,0.00058082,120]
[354581908,1740580343961,-755.26,0.00058082,120]
[354581909,1740580344006,-500.0,0.00058082,120]
[354581910,1740580344051,-500.0,0.00058082,120]
[354581911,1740580344093,-2130.93,0.00058082,120]
[354581912,1740580344137,-756.88,0.00058082,120]
[354581913,1740580344180,-500.0,0.00058082,120]
[354581914,1740580344223,-1758.0,0.00058082,120]
[354581915,1740580344265,-573.97,0.00058082,120]
[354581916,1740580344308,-500.0,0.00058082,120]
[354581917,1740580344349,-1293.56,0.00058082,120]
[354581918,1740580344393,-538.92,0.00058082,120]
[354581919,1740580344436,-1059.64,0.00058082,120]
[354581920,1740580344475,-500.0,0.00058082,120]
[354581921,1740580344518,-3370.3,0.00058082,120]
[354581922,1740580344561,-500.0,0.00058082,120]
[354581923,1740580344607,-22791.47,0.00058082,120]
[354581924,1740580344655,-4534.2,0.00058082,120]
[354581925,1740580344704,-812.31,0.00058082,120]
[354581926,1740580344753,-500.0,0.00058082,120]
[354581927,1740580344800,-798.11,0.00058082,120]
[354581928,1740580344847,-2515.99,0.00058082,120]
[354581929,1740580344895,-595.96,0.00058082,60]
[354581930,1740580344943,-869.48,0.00058082,120]
[354581931,1740580344992,-500.0,0.00058082,120]
[354581932,1740580345038,-1566.41,0.00058082,120]
[354581933,1740580345081,-500.0,0.00058082,120]
[354581934,1740580345125,-759.42,0.00058082,120]
[354581935,1740580345169,-1097.91,0.00058082,120]
[354581936,1740580345212,-500.0,0.00058082,120]
[354581937,1740580345255,-656.97,0.00058082,120]
[354581938,1740580345296,-500.0,0.00058082,120]
[354581939,1740580345337,-500.0,0.00058082,120]
[354581940,1740580345382,-1073.63,0.00058082,120]
[354581941,1740580345426,-9030.67,0.00058082,120]
[354581942,1740580345471,-500.0,0.00058082,120]
[354581943,1740580345515,-1754.86,0.00058082,120]
[354581944,1740580345558,-822.59,0.00058082,120]
[354581945,1740580345607,-715.41,0.00058082,120]
[354581946,1740580345656,-697.85,0.00058082,120]
[354581947,1740580345704,-500.0,0.00058082,120]
[354581948,1740580345754,-500.0,0.00058082,120]
[354581949,1740580345800,-500.0,0.00058082,120]
[354581950,1740580345845,-2328.66,0.00058082,120]
[354581951,1740580345889,-821.85,0.00058082,120]
[354581952,1740580345932,-502.91,0.00058082,120]
[354581953,1740580345977,-691.85,0.00058082,120]
[354581954,1740580346020,-752.5,0.00058082,120]
[354581955,1740580346065,-1767.84,0.00058082,120]
[354581956,1740580346109,-1669.91,0.00058082,120]
[354581957,1740580346154,-500.0,0.00058082,120]
[354581958,1740580346198,-880.56,0.00058082,120]
[354581959,1740580346243,-2599.13,0.00058082,120]
[354581960,1740580346286,-2021.07,0.00058082,120]
[354581961,1740580346330,-535.05,0.00058082,120]
[354581962,1740580346375,-501.85,0.00058082,120]
[354581963,1740580346419,-500.0,0.00058082,120]
[354581964,1740580346466,-500.0,0.00058082,120]
[354581965,1740580346511,-414.78763771,0.00058082,120]
[354581977,1740580681739,1000.0,0.00045182,30]
[354581978,1740580716421,1000.0,0.00045182,120]
[354581979,1740580813693,102594.28632366,0.00045293,30]
[354582003,1740581408768,1832.4904,0.00045284,30]
[354582030,1740581432797,-188.33570708,0.00030137,2]
[354582031,1740581432807,-294.54593776,0.00031945,120]
[354582032,1740581432818,-534.31770684,0.00031945,120]
[354582033,1740581432828,-201.0,0.00038949,5]
[354582034,1740581432842,-24900.0,0.0003895,2]
[354582035,1740581432852,-262.42413832,0.00039689,118]
[354582036,1740581432862,-166.0,0.00039789,120]
[354582037,1740581432872,-239.21,0.00044183,30]
[354582038,1740581432882,-19603.87691479,0.00044194,2]
[354582039,1740581432892,-262.42413829,0.0004481,120]
[354582040,1740581432902,-500.0,0.00044826,120]
[354582041,1740581432913,-201.74193763,0.000449,10]
[354582042,1740581432923,-151.0,0.00045,120]
[354582043,1740581432932,-151.0,0.00045,120]
[354582044,1740581432942,-241.996,0.00045,72]
[354582045,1740581432952,-5312.29386998,0.00045026,2]
[354582046,1740581432964,-160.60253943,0.00045076,28]
[354582047,1740581432975,-500.0,0.000451,30]
[354582048,1740581432988,-680.1702629,0.00045176,4]
[354582049,1740581432999,-716.87035634,0.00045184,2]
[354582050,1740581433010,-2351.88,0.000452,30]
[354582051,1740581433020,-268.25,0.000452,30]
[354582052,1740581433030,-3313.63,0.000452,30]
[354582053,1740581433041,-1360.8,0.000452,30]
[354582054,1740581433050,-500.0,0.00045267,10]
[354582055,1740581433060,-502.09421439,0.00045273,10]
[354582056,1740581433070,-500.77851559,0.00045273,10]
[354582057,1740581433079,-500.39970858,0.00045273,10]
[354582058,1740581433091,-500.0,0.00045273,10]
[354582059,1740581433102,-500.0,0.00045273,7]
[354582060,1740581433112,-500.0,0.00045273,10]
[354582061,1740581433122,-500.0,0.00045273,10]
[354582062,1740581433132,-500.0,0.00045273,10]
[354582063,1740581433142,-500.0,0.00045273,10]
[354582064,1740581433151,-500.0,0.00045273,10]
[354582065,1740581433161,-500.0,0.00045273,10]
[354582066,1740581433172,-500.0,0.00045273,10]
[354582067,1740581433181,-621.45107079,0.00045283,120]
[354582068,1740581433191,-473.35141984,0.00045283,120]
[354582069,1740581433201,-500.0,0.00045283,31]
[354582070,1740581433211,-179.55223708,0.00045283,31]
[354582071,1740581433221,-552.26226718,0.00045283,31]
[354582072,1740581433230,-500.0,0.00045283,120]
[354582073,1740581433240,-500.0,0.00045283,120]
[354582074,1740581433250,-500.0,0.00045283,2]
[354582075,1740581433260,-500.0,0.00045283,120]
[354582076,1740581433270,-500.0,0.00045283,120]
[354582077,1740581433280,-500.0,0.00045283,120]
[354582078,1740581433289,-500.0,0.00045283,2]
[354582079,1740581433299,-500.0,0.00045283,120]
[354582080,1740581433308,-506.94014885,0.00045283,120]
[354582081,1740581433318,-507.40864322,0.00045283,120]
[354582082,1740581433327,-500.0,0.00045283,2]
[354582083,1740581433337,-500.0,0.00045283,120]
[354582084,1740581433351,-500.0,0.00045283,120]
[354582085,1740581433361,-500.0,0.00045283,120]
[354582086,1740581433370,-300.0,0.00045283,2]
[354582087,1740581433380,-500.0,0.00045283,120]
[354582088,1740581433391,-500.0,0.00045283,120]
[354582089,1740581433401,-500.0,0.00045283,120]
[354582090,1740581433412,-500.0,0.00045283,120]
[354582091,1740581433423,-500.0,0.00045283,120]
[354582092,1740581433434,-500.0,0.00045283,120]
[354582093,1740581433444,-500.0,0.00045283,120]
[354582094,1740581433454,-500.0,0.00045283,120]
[354582095,1740581433465,-500.0,0.00045283,120]
[354582096,1740581433475,-500.0,0.00045283,120]
[354582097,1740581433485,-500.0,0.00045283,120]
[354582098,1740581433496,-500.0,0.00045283,120]
[354582099,1740581433506,-500.0,0.00045283,120]
[354582100,1740581433517,-200.0,0.00045283,120]
[354582101,1740581433527,-500.0,0.00045283,120]
[354582102,1740581433537,-500.0,0.00045283,120]
[354582103,1740581433547,-500.0,0.00045283,120]
[354582104,1740581433557,-500.0,0.00045283,120]
[354582105,1740581433567,-500.0,0.00045283,2]
[354582106,1740581433577,-566.67778895,0.00045283,120]
[354582107,1740581433587,-500.0,0.00045283,2]
[354582108,1740581433605,-500.0,0.00045283,120]
[354582109,1740581433615,-500.0,0.00045283,2]
[354582110,1740581433624,-500.0,0.00045283,2]
[354582111,1740581433635,-500.0,0.00045283,120]
[354582112,1740581433644,-500.0,0.00045283,120]
[354582113,1740581433654,-500.0,0.00045283,2]
[354582114,1740581433664,-500.0,0.00045283,2]
[354582115,1740581433674,-500.0,0.00045283,120]
[354582116,1740581433684,-177.44962778,0.00045283,2]
[354582117,1740581433693,-500.0,0.00045283,2]
[354582118,1740581433703,-500.0,0.00045283,120]
[354582119,1740581433713,-500.0,0.00045283,2]
[354582120,1740581433723,-500.0,0.00045283,2]
[354582121,1740581433733,-500.0,0.00045283,2]
[354582122,1740581433743,-500.0,0.00045283,2]
[354582123,1740581433753,-500.0,0.00045283,2]
[354582124,1740581433763,-500.0,0.00045283,2]
[354582125,1740581433773,-500.0,0.00045283,2]
[354582126,1740581433783,-500.0,0.00045283,2]
[354582127,1740581433792,-500.0,0.00045283,2]
[354582128,1740581433802,-500.0,0.00045283,2]
[354582129,1740581433811,-500.0,0.00045283,2]
[354582130,1740581433821,-500.0,0.00045283,2]
[354582131,1740581433830,-500.0,0.00045283,2]
[354582132,1740581433844,-500.0,0.00045283,2]
[354582133,1740581433853,-84612.53627216,0.00045284,7]
[354582134,1740581433863,-20008.6005373,0.00045284,2]
[354582135,1740581433873,-150.17171672,0.00045284,7]
[354582136,1740581433883,-4001.96776542,0.00045284,3]
[354582137,1740581433893,-178972.25140628,0.00045284,10]
[354582155,1740581438328,-43340.90460181,0.00045284,10]
[354582156,1740581438347,-37680.12876443,0.00045284,10]
[354582157,1740581438361,-9836.76645737,0.00045284,10]
[354582158,1740581438375,-3687.39304552,0.00045284,10]
[354582159,1740581438389,-121572.33917544,0.00045284,10]
[354582160,1740581438404,-1423.68423973,0.00045284,10]
[354582195,1740581440543,-86910.04682614,0.00045284,10]
[354582205,1740581441227,-1219.54056534,0.00045284,10]
[354582344,1740581443696,-591.49053753,0.00045284,10]
[354582346,1740581443710,-8638.58171796,0.00045284,10]
[354582349,1740581443721,-20279.772556,0.00045284,15]
[354582351,1740581443733,-151.0,0.00045284,30]
[354582353,1740581443744,-1000.0,0.00045292,120]
[354582355,1740581443754,-660.0,0.00045293,120]
[354582357,1740581443765,-166.1,0.00045832,30]
[354582359,1740581443776,-883.23655693,0.00046,2]
[354582362,1740581443788,-160.0,0.00046195,2]
[354582364,1740581443799,-182.71,0.0004638,30]
[354582366,1740581443811,-200.981,0.00046928,30]
[354582368,1740581443821,-302.0,0.00047476,30]
[354582370,1740581443832,-716.87035631,0.00047562,2]
[354582373,1740581443843,-501.65,0.00049,120]
[354582376,1740581443856,-151.0,0.00049068,120]
[354582379,1740581443867,-262.42413829,0.00049931,120]
[354582383,1740581443879,-716.87035631,0.00049939,2]
[354582386,1740581443890,-16364.83039728,0.0005,2]
[354582388,1740581443900,-215.26605467,0.0005,20]
[354582390,1740581443911,-524.54995749,0.0005,10]
[354582393,1740581443922,-452.15235294,0.00050742,4]
[354582395,1740581443933,-500.24850899,0.00050746,10]
[354582397,1740581443944,-1000.0,0.00050752,10]
[354582399,1740581443955,-500.0,0.00050752,10]
[354582401,1740581443966,-1000.0,0.00050752,10]
[354582403,1740581443977,-500.0,0.00050752,10]
[354582405,1740581443986,-1000.0,0.00050752,10]
[354582407,1740581443995,-1000.0,0.00050752,10]
[354582409,1740581444006,-160.60253943,0.00051022,28]
[354582411,1740581444016,-716.87035631,0.00052317,2]
[354582413,1740581444027,-151.0,0.000529,23]
[354582415,1740581444037,-151.0,0.00053151,120]
[354582417,1740581444047,-691.04,0.000536,54]
[354582418,1740581444056,-691.04,0.000536,54]
[354582421,1740581444066,-691.04,0.000536,54]
[354582422,1740581444076,-691.04,0.000536,54]
[354582424,1740581444087,-691.04,0.000536,54]
[354582426,1740581444100,-691.04,0.000536,54]
[354582429,1740581444110,-691.04,0.000536,54]
[354582431,1740581444120,-691.04,0.000536,54]
[354582432,1740581444129,-691.04,0.000536,54]
[354582434,1740581444139,-691.04,0.000536,54]
[354582436,1740581444148,-691.04,0.000536,54]
[354582439,1740581444158,-691.04,0.000536,54]
[354582441,1740581444167,-151.0,0.000538,23]
[354582459,1740581444471,-2351.88,0.000545,30]
[354582460,1740581444492,-268.25,0.000545,30]
[354582461,1740581444503,-3313.63,0.000545,30]
[354582462,1740581444513,-1360.8,0.000545,30]
[354582463,1740581444523,-716.87035631,0.00054694,2]
[354582464,1740581444532,-7437.16246566,0.00054694,2]
[354582465,1740581444542,-500.0,0.00054773,10]
[354582466,1740581444551,-500.0,0.00054773,10]
[354582467,1740581444561,-500.0,0.00054773,7]
[354582468,1740581444579,-500.0,0.00054773,10]
[354582470,1740581444588,-500.0,0.00054773,10]
[354582472,1740581444602,-500.0,0.00054773,10]
[354582474,1740581444612,-500.0,0.00054773,10]
[354582476,1740581444621,-240.0,0.00054773,10]
[354582478,1740581444630,-288.60378349,0.00054773,10]
[354582480,1740581444643,-211.39621651,0.00054773,10]
[354582482,1740581444652,-500.0,0.00054773,10]
[354582484,1740581444662,-500.0,0.00054773,10]
[354582486,1740581444674,-500.0,0.00054773,10]
[354582488,1740581444683,-384.42858924,0.00054773,10]
[354582490,1740581444692,-500.0,0.00054773,10]
[354582492,1740581444701,-500.0,0.00054773,10]
[354582494,1740581444711,-500.0,0.00054773,10]
[354582496,1740581444721,-500.0,0.00054773,10]
[354582498,1740581444731,-500.0,0.00054773,10]
[354582500,1740581444740,-500.0,0.00054773,10]
[354582502,1740581444750,-500.0,0.00054773,10]
[354582504,1740581444760,-500.0,0.00054773,10]
[354582506,1740581444770,-8138.74235292,0.00054784,5]
[354582508,1740581444779,-500.0,0.00054794,2]
[354582510,1740581444788,-502.38674782,0.00054794,120]
[354582512,1740581444799,-616.37680467,0.00054794,120]
[354582514,1740581444808,-500.0,0.00054794,120]
[354582516,1740581444818,-500.0,0.00054794,120]
[354582518,1740581444827,-518.05698877,0.00054794,120]
[354582520,1740581444837,-500.0,0.00054794,120]
[354582522,1740581444849,-533.01,0.00054794,120]
[354582524,1740581444859,-500.0,0.00054794,120]
[354582526,1740581444869,-500.0,0.00054794,120]
[354582528,1740581444879,-456.60463459,0.00054794,120]
[354582530,1740581444889,-500.0,0.00054794,120]
[354582532,1740581444898,-500.0,0.00054794,120]
[354582534,1740581444908,-500.0,0.00054794,120]
[354582536,1740581444917,-1147.15,0.00054794,120]
[354582538,1740581444928,-312.58581069,0.00054794,120]
[354582540,1740581444938,-500.0,0.00054794,120]
[354582542,1740581444947,-500.0,0.00054794,120]
[354582544,1740581444958,-500.0,0.00054794,120]
[354582546,1740581444969,-500.0,0.00054794,120]
[354582548,1740581444979,-500.0,0.00054794,120]
[354582550,1740581444988,-500.0,0.00054794,120]
[354582552,1740581444999,-661.35,0.00054794,120]
[354582554,1740581445008,-500.0,0.00054794,120]
[354582556,1740581445018,-631.33360392,0.00054794,120]
[354582558,1740581445028,-500.0,0.00054794,120]
[354582560,1740581445037,-1000.0,0.00054794,20]
[354582562,1740581445049,-500.0,0.00054794,120]
[354582564,1740581445060,-506.63511782,0.00054794,120]
[354582566,1740581445070,-500.0,0.00054794,120]
[354582568,1740581445079,-500.0,0.00054794,120]
[354582570,1740581445088,-500.0,0.00054794,120]
[354582572,1740581445100,-521.28,0.00054794,120]
[354582574,1740581445109,-627.42,0.00054794,120]
[354582576,1740581445119,-500.0,0.00054794,120]
[354582578,1740581445130,-500.0,0.00054794,30]
[354582580,1740581445140,-500.0,0.00054794,120]
[354582582,1740581445150,-530.0725977,0.00054794,120]
[354582584,1740581445160,-500.0,0.00054794,120]